bitfinex/quotes_BTCUSD_20241130
["timestamp","ask_amount","ask_price","bid_price","bid_amount"]
[1732988540150,0.12484521,96926.0,96925.0,0.24707364]
[1732988546512,0.0008641,96929.0,96928.0,0.23404584]
[1732988546715,0.0008641,96929.0,96928.0,0.24125743]
[1732988547910,0.0058641,96929.0,96928.0,0.24125743]
[1732988549502,0.0148641,96929.0,96928.0,0.24225743]
[1732988556792,0.0148641,96929.0,96928.0,0.25225743]
[1732988557497,0.0148641,96929.0,96928.0,0.24225743]
[1732988557744,0.0148641,96929.0,96928.0,0.25225743]
[1732988557982,0.0148641,96929.0,96928.0,0.26225743]
[1732988574683,0.0148641,96929.0,96928.0,0.5402442]
[1732988575113,0.0148641,96929.0,96928.0,0.26225743]
[1732988575571,0.0148641,96929.0,96928.0,0.5402442]
[1732988576603,0.0148641,96929.0,96928.0,0.26225743]
[1732988578015,0.0148641,96929.0,96928.0,0.5402442]
[1732988579106,0.0148641,96929.0,96928.0,0.54039008]
[1732988579312,0.0148641,96929.0,96928.0,0.26225743]
[1732988579731,0.0148641,96929.0,96928.0,0.54041921]
[1732988579980,0.0148641,96929.0,96928.0,0.26225743]
[1732988580619,0.0148641,96929.0,96928.0,0.29888427]
[1732988580837,0.0148641,96929.0,96928.0,0.02068842]
[1732988583484,0.0148641,96929.0,96928.0,0.29893349]
[1732988586096,0.0148641,96929.0,96928.0,0.28718565]
[1732988586354,0.1180321,96929.0,96928.0,0.29893349]
[1732988586780,0.1180321,96929.0,96928.0,0.28718565]
[1732988587013,0.0148641,96929.0,96928.0,0.29893349]
[1732988588047,0.0148641,96929.0,96928.0,0.29904732]
[1732988588475,0.0148641,96929.0,96928.0,0.28729948]
[1732988588762,0.1180321,96929.0,96928.0,0.29904732]
[1732988590369,0.1180321,96929.0,96928.0,0.28904732]
[1732988591705,0.1180321,96929.0,96928.0,0.28729948]
[1732988592419,0.1180321,96929.0,96928.0,0.00894058]
[1732988592694,0.2417321,96929.0,96928.0,0.01068842]
[1732988592927,0.2417321,96929.0,96928.0,0.00995942]
[1732988593169,0.27391573,96929.0,96928.0,0.01068842]
[1732988593399,0.27391573,96929.0,96928.0,0.00995942]
[1732988594023,0.27391573,96929.0,96928.0,0.01068842]
[1732988594743,0.27391573,96929.0,96928.0,0.00995942]
[1732988594932,0.27391573,96929.0,96928.0,0.01068842]
[1732988595609,0.27391573,96929.0,96928.0,0.00995942]
[1732988595823,0.27391573,96929.0,96928.0,0.01068842]
[1732988596489,0.37676094,96929.0,96928.0,0.01068842]
[1732988598692,0.37676094,96929.0,96928.0,0.00894058]
[1732988598898,0.37676094,96929.0,96928.0,0.01068842]
[1732988599542,0.30176094,96929.0,96928.0,0.01068842]
[1732988600769,0.25306094,96929.0,96928.0,0.01068842]
[1732988601929,0.30126094,96929.0,96928.0,0.01068842]
[1732988623718,0.45126094,96929.0,96928.0,0.01068842]
[1732988629191,0.45126094,96929.0,96928.0,0.00894058]
[1732988629876,0.43726094,96929.0,96928.0,0.00794058]
[1732988630106,0.44626094,96929.0,96928.0,0.00894058]
[1732988630315,0.45526094,96929.0,96928.0,0.00994058]
[1732988630525,0.45526094,96929.0,96928.0,0.01168842]
[1732988631010,0.45526094,96929.0,96928.0,0.00994058]
[1732988632335,0.53356094,96929.0,96928.0,0.01095942]
[1732988632960,0.53356094,96929.0,96928.0,0.00921158]
[1732988633275,0.53356094,96929.0,96928.0,0.01095942]
[1732988633715,1.23356094,96929.0,96928.0,0.01095942]
[1732988635381,1.23356094,96929.0,96928.0,0.00921158]
[1732988644673,0.53356094,96929.0,96928.0,0.00921158]
[1732988647770,1.23356094,96929.0,96928.0,0.00921158]
[1732988651497,1.23356094,96929.0,96926.0,0.82065311]
[1732988651498,0.10317,96927.0,96926.0,0.82065311]
[1732988651728,0.50969884,96927.0,96926.0,0.73811711]
[1732988651949,0.50969884,96927.0,96926.0,0.69684911]
[1732988652837,0.51869884,96927.0,96926.0,0.69684911]
[1732988653052,0.52769884,96927.0,96926.0,0.69684911]
[1732988653520,0.72119884,96927.0,96926.0,0.59367911]
[1732988653811,0.55069884,96927.0,96926.0,0.59367911]
[1732988654016,0.74419884,96927.0,96926.0,0.59367911]
[1732988654690,0.75498156,96927.0,96926.0,0.59367911]
[1732988654912,1.45498156,96927.0,96926.0,0.59367911]
[1732988655608,1.26148156,96927.0,96926.0,0.59367911]
[1732988659103,1.26148156,96927.0,96926.0,0.60020701]
[1732988660620,1.45498156,96927.0,96926.0,0.60020701]
[1732988661506,0.75498156,96927.0,96926.0,0.60020701]
[1732988664194,0.75670976,96927.0,96926.0,0.60020701]
[1732988664408,1.45670976,96927.0,96926.0,0.60020701]
[1732988666482,0.75670976,96927.0,96926.0,0.60020701]
[1732988669477,1.45670976,96927.0,96926.0,0.60020701]
[1732988670782,0.75670976,96927.0,96926.0,0.60020701]
[1732988671016,0.65750976,96927.0,96926.0,0.60020701]
[1732988671234,0.41870976,96927.0,96926.0,0.60020701]
[1732988673257,0.41870976,96927.0,96926.0,0.60195485]
[1732988674146,0.41870976,96927.0,96926.0,0.60020701]
[1732988674350,0.41870976,96927.0,96926.0,0.60195485]
[1732988676429,0.61220976,96927.0,96926.0,0.00913984]
[1732988676629,0.61220976,96927.0,96926.0,0.13613984]
[1732988676833,0.61220976,96927.0,96926.0,0.12961194]
[1732988679311,0.61220976,96927.0,96926.0,0.13034094]
[1732988682458,0.60142704,96927.0,96926.0,0.13034094]
[1732988683366,0.49825704,96927.0,96926.0,0.13034094]
[1732988683590,0.60142704,96927.0,96926.0,0.13034094]
[1732988683830,0.60142704,96927.0,96926.0,0.13694743]
[1732988684061,0.60142704,96927.0,96926.0,0.13034094]
[1732988684331,0.58342704,96927.0,96926.0,0.13034094]
[1732988684554,0.60142704,96927.0,96926.0,0.13034094]
[1732988684772,0.59242704,96927.0,96926.0,0.13034094]
[1732988685009,0.58342704,96927.0,96926.0,0.13034094]
[1732988685225,0.59242704,96927.0,96926.0,0.13034094]
[1732988685458,0.60142704,96927.0,96926.0,0.13034094]
[1732988687855,0.40792704,96927.0,96926.0,0.08174094]
[1732988689661,0.40792704,96927.0,96926.0,0.00334094]
[1732988692941,0.60142704,96927.0,96926.0,0.00334094]
[1732988694911,0.40792704,96927.0,96926.0,0.0008641]
[1732988695128,0.40792704,96927.0,96926.0,0.00261194]
[1732988695551,0.40792704,96927.0,96926.0,0.0008641]
[1732988695778,0.40792704,96927.0,96926.0,0.00261194]
[1732988696388,0.40792704,96927.0,96926.0,0.0008641]
[1732988696828,0.40792704,96927.0,96926.0,0.00261194]
[1732988701859,0.40792704,96927.0,96926.0,0.00288177]
[1732988702356,0.40292704,96927.0,96926.0,0.00288177]
[1732988710359,0.40292704,96927.0,96926.0,0.08671077]
[1732988711238,0.40292704,96927.0,96926.0,0.13181077]
[1732988722649,0.40292704,96927.0,96926.0,0.08671077]
[1732988722877,0.40292704,96927.0,96926.0,0.13411077]
[1732988725381,0.40292704,96927.0,96926.0,0.00361077]
[1732988726313,0.40292704,96927.0,96926.0,1.00361077]
[1732988726798,0.40292704,96927.0,96926.0,1.01022283]
[1732988732332,0.40292704,96927.0,96926.0,1.00833455]
[1732988753478,0.40292704,96927.0,96926.0,1.00760555]
[1732988758704,0.40292704,96927.0,96926.0,1.00833455]
[1732988759153,0.40292704,96927.0,96926.0,1.00760555]
[1732988759375,0.40292704,96927.0,96926.0,1.00833455]
[1732988760472,0.41907331,96927.0,96926.0,1.00833455]
[1732988761154,0.40292704,96927.0,96926.0,1.00833455]
[1732988764116,0.40292704,96927.0,96926.0,1.00760555]
[1732988764340,0.40292704,96927.0,96926.0,1.00585771]
[1732988764569,0.40292704,96927.0,96926.0,1.00760555]
[1732988764976,0.40292704,96927.0,96926.0,1.00585771]
[1732988765483,0.40292704,96927.0,96926.0,1.00760555]
[1732988765708,0.40292704,96927.0,96926.0,1.00585771]
[1732988766614,0.40292704,96927.0,96926.0,1.00833455]
[1732988767349,0.40292704,96927.0,96926.0,1.00658671]
[1732988767582,0.40292704,96927.0,96926.0,1.00833455]
[1732988769665,0.59642704,96927.0,96926.0,1.00833455]
[1732988774222,0.59642704,96927.0,96926.0,1.05513455]
[1732988776046,0.40292704,96927.0,96926.0,1.00833455]
[1732988778212,0.40292704,96927.0,96926.0,1.00760555]
[1732988778870,0.40292704,96927.0,96926.0,1.00833455]
[1732988779316,0.40292704,96927.0,96926.0,1.00760555]
[1732988779534,0.40292704,96927.0,96926.0,1.00833455]
[1732988781055,0.59642704,96927.0,96926.0,1.00760555]
[1732988781259,0.59642704,96927.0,96926.0,1.00833455]
[1732988781456,0.59642704,96927.0,96926.0,1.00760555]
[1732988781675,0.59642704,96927.0,96926.0,1.00833455]
[1732988788577,0.59642704,96927.0,96926.0,1.00585771]
[1732988788798,0.59642704,96927.0,96926.0,1.00760555]
[1732988789260,0.40292704,96927.0,96926.0,1.00833455]
[1732988789490,0.40292704,96927.0,96926.0,1.00760555]
[1732988790643,0.40292704,96927.0,96926.0,1.00833455]
[1732988790868,0.40292704,96927.0,96926.0,1.00760555]
[1732988791093,0.40292704,96927.0,96926.0,1.00585771]
[1732988791329,0.40292704,96927.0,96926.0,1.00760555]
[1732988791553,0.40292704,96927.0,96926.0,1.00833455]
[1732988791860,0.40292704,96927.0,96926.0,1.00760555]
[1732988792763,0.40292704,96927.0,96926.0,1.00833455]
[1732988792981,0.40292704,96927.0,96926.0,1.00760555]
[1732988793632,0.40292704,96927.0,96926.0,1.00833455]
[1732988794282,0.59642704,96927.0,96926.0,1.00833455]
[1732988808524,0.59642704,96927.0,96926.0,1.00008478]
[1732988811150,0.59642704,96927.0,96926.0,0.00720062]
[1732988811613,0.59642704,96927.0,96926.0,0.00247684]
[1732988814954,0.59642704,96927.0,96926.0,0.00420504]
[1732988815650,0.64202704,96927.0,96926.0,0.00420504]
[1732988815878,0.59642704,96927.0,96926.0,0.00420504]
[1732988821649,0.61257382,96927.0,96926.0,0.00420504]
[1732988831583,0.41907382,96927.0,96926.0,0.00420504]
[1732988831810,0.41907382,96927.0,96926.0,0.0024572]
[1732988832036,0.41907382,96927.0,96926.0,0.00420504]
[1732988835121,0.54657382,96927.0,96926.0,0.0017282]
[1732988835780,0.74007382,96927.0,96926.0,0.0017282]
[1732988835987,0.54657382,96927.0,96926.0,0.0017282]
[1732988836598,1.24657382,96927.0,96926.0,0.0017282]
[1732988837018,1.23757382,96927.0,96926.0,0.0017282]
[1732988837273,1.24657382,96927.0,96926.0,0.0017282]
[1732988837485,1.23757382,96927.0,96926.0,0.0017282]
[1732988837755,1.24657382,96927.0,96926.0,0.0017282]
[1732988841505,1.44007382,96927.0,96926.0,0.0017282]
[1732988849562,1.46307382,96927.0,96926.0,0.0017282]
[1732988850192,0.76307382,96927.0,96926.0,0.0017282]
[1732988850864,1.46307382,96927.0,96926.0,0.0017282]
[1732988851039,1.46307382,96927.0,96926.0,2e-07]
[1732988852314,1.31257382,96927.0,96926.0,2e-07]
[1732988852525,1.11907382,96927.0,96926.0,2e-07]
[1732988853612,0.41907382,96927.0,96926.0,2e-07]
[1732988856450,1.11907382,96927.0,96926.0,2e-07]
[1732988857798,1.31257382,96927.0,96926.0,2e-07]
[1732988861525,0.97407382,96927.0,96926.0,0.12897704]
[1732988862560,0.26507382,96927.0,96926.0,0.12897704]
[1732988862994,0.40607382,96927.0,96926.0,0.12897704]
[1732988863425,0.41507382,96927.0,96926.0,0.12897704]
[1732988864062,0.42407382,96927.0,96926.0,0.12897704]
[1732988866679,0.61757382,96927.0,96926.0,0.12897704]
[1732988869135,0.61757382,96927.0,96926.0,0.23214804]
[1732988869136,0.36440382,96927.0,96926.0,0.23214804]
[1732988869348,0.17090382,96927.0,96926.0,0.12897704]
[1732988869563,0.17090382,96927.0,96926.0,0.13264539]
[1732988869564,0.12257341,96927.0,96926.0,0.13264539]
[1732988872600,0.12257341,96927.0,96926.0,0.23581639]
[1732988874408,0.12257341,96927.0,96926.0,0.23581639]
[1732988877096,0.10457341,96927.0,96926.0,0.23581639]
[1732988877555,0.11357341,96927.0,96926.0,0.23581639]
[1732988878456,0.11857341,96927.0,96926.0,0.23581639]
[1732988881936,0.0157282,96927.0,96926.0,0.24581639]
[1732988905752,0.0157282,96927.0,96926.0,0.52332767]
[1732988906648,0.0157282,96927.0,96926.0,0.24581639]
[1732988909820,0.0157282,96927.0,96926.0,0.23581639]
[1732988910959,0.0157282,96927.0,96926.0,0.00614539]
[1732988910960,0.11857341,96927.0,96926.0,0.00614539]
[1732988911187,0.22174341,96927.0,96926.0,0.00614539]
[1732988911639,0.11857341,96927.0,96926.0,0.28413707]
[1732988911850,0.22174341,96927.0,96926.0,0.28413707]
[1732988912088,0.11857341,96927.0,96926.0,0.28413707]
[1732988912726,0.11857341,96927.0,96926.0,0.00614539]
[1732988913186,0.22174341,96927.0,96926.0,0.00614539]
[1732988913866,0.22174341,96927.0,96926.0,0.00247704]
[1732988914318,0.22174341,96927.0,96926.0,0.00528761]
[1732988914588,0.22174341,96927.0,96926.0,0.2834018]
[1732988914809,0.22174341,96927.0,96926.0,0.28182167]
[1732988915685,0.22174341,96927.0,96926.0,0.00370748]
[1732988916107,0.22174341,96927.0,96926.0,0.00089691]
[1732988916333,0.103171,96926.0,96925.0,0.00268484]
[1732988916558,0.20601621,96926.0,96925.0,0.00268484]
[1732988916787,0.20601621,96926.0,96925.0,0.00549908]
[1732988917001,0.10284521,96926.0,96925.0,0.00268484]
[1732988917213,0.10284521,96926.0,96925.0,0.00549908]
[1732988917423,0.10284521,96926.0,96925.0,0.00268484]
[1732988917631,0.10284521,96926.0,96925.0,0.00549908]
[1732988917856,0.20601621,96926.0,96925.0,0.00268484]
[1732988918070,0.21101621,96926.0,96925.0,0.00268484]
[1732988918285,0.21101621,96926.0,96925.0,0.00549908]
[1732988918485,0.21101621,96926.0,96925.0,0.00268484]
[1732988918714,0.11684521,96926.0,96925.0,0.00549908]
[1732988918938,0.11684521,96926.0,96925.0,0.00268484]
[1732988919154,0.11684521,96926.0,96925.0,0.00549908]
[1732988919394,0.11684521,96926.0,96925.0,0.00268484]
[1732988919605,0.11684521,96926.0,96925.0,0.00549908]
[1732988919819,0.11684521,96926.0,96925.0,0.00268484]
[1732988920054,0.11684521,96926.0,96925.0,0.00549908]
[1732988920279,0.11684521,96926.0,96925.0,0.00268484]
[1732988920504,0.11684521,96926.0,96925.0,0.00549908]
[1732988920727,0.11684521,96926.0,96925.0,0.00268484]
[1732988920946,0.11684521,96926.0,96925.0,0.00549908]
[1732988921162,0.11684521,96926.0,96925.0,0.00268484]
[1732988921385,0.11684521,96926.0,96925.0,0.00549908]
[1732988921609,0.11684521,96926.0,96925.0,0.00268484]
[1732988921826,0.11684521,96926.0,96925.0,0.00549908]
[1732988922042,0.11684521,96926.0,96925.0,0.00268484]
[1732988922331,0.11684521,96926.0,96925.0,0.00549908]
[1732988930762,0.11770931,96926.0,96925.0,0.00549908]
[1732988931338,0.11737439,96926.0,96925.0,0.00549908]
[1732988934114,0.22054539,96926.0,96925.0,0.00549908]
[1732988934527,0.11737439,96926.0,96925.0,0.00549908]
[1732988934949,0.22054539,96926.0,96925.0,0.00549908]
[1732988937686,0.22054539,96926.0,96925.0,0.00460217]
[1732988937899,0.22054539,96926.0,96925.0,0.00549908]
[1732988938117,0.22054539,96926.0,96925.0,0.00460217]
[1732988938986,0.22054539,96926.0,96925.0,0.00549908]
[1732988939192,0.22054539,96926.0,96925.0,0.00460217]
[1732988939405,0.22054539,96926.0,96925.0,0.00549908]
[1732988940039,0.22011492,96926.0,96925.0,0.00549908]
[1732988943128,0.11694392,96926.0,96925.0,0.00549908]
[1732988944645,0.22011492,96926.0,96925.0,0.00549908]
[1732988945816,0.11694392,96926.0,96925.0,0.00549908]
[1732988947131,0.22011492,96926.0,96925.0,0.00549908]
[1732988947354,0.11694392,96926.0,96925.0,0.00549908]
[1732988951325,0.11660874,96926.0,96925.0,0.00549908]
[1732988951505,0.21977974,96926.0,96925.0,0.00549908]
[1732988956749,0.26707974,96926.0,96925.0,0.00460217]
[1732988956988,0.26707974,96926.0,96925.0,0.00549908]
[1732988957202,0.29925812,96926.0,96925.0,0.00549908]
[1732988957420,0.29925812,96926.0,96925.0,0.00460217]
[1732988957635,0.29925812,96926.0,96925.0,0.00549908]
[1732988958764,0.44925812,96926.0,96925.0,0.00549908]
[1732988960973,0.44925812,96926.0,96925.0,0.00268484]
[1732988961386,0.44893285,96926.0,96925.0,0.00268484]
[1732988961599,0.44893285,96926.0,96925.0,0.00550425]
[1732988961814,0.44893285,96926.0,96925.0,0.00268484]
[1732988963479,0.41675447,96926.0,96925.0,0.00268484]
[1732988966307,0.36945447,96926.0,96925.0,0.00268484]
[1732988970461,0.36945447,96926.0,96925.0,0.00585995]
[1732988971388,0.26560736,96926.0,96925.0,0.00585995]
[1732988971604,0.26560736,96926.0,96925.0,0.15493195]
[1732988972041,0.26560736,96926.0,96925.0,0.05175995]
[1732988972287,0.26560736,96926.0,96925.0,0.15493195]
[1732988973169,0.26560736,96926.0,96925.0,0.05175995]
[1732988973821,0.26560736,96926.0,96925.0,0.43350185]
[1732988974717,0.26560736,96926.0,96925.0,0.15493195]
[1732988975203,0.26560736,96926.0,96925.0,0.43320395]
[1732988975421,0.26560736,96926.0,96925.0,0.15493195]
[1732988975636,0.26560736,96926.0,96925.0,0.05175995]
[1732988975850,0.26560736,96926.0,96925.0,0.43320474]
[1732988976061,0.26560736,96926.0,96925.0,0.28413274]
[1732988976538,0.26560736,96926.0,96925.0,0.00585995]
[1732988976976,0.26560736,96926.0,96925.0,0.28413831]
[1732988977857,0.26560736,96926.0,96925.0,0.10903195]
[1732988978284,0.26560736,96926.0,96925.0,0.00585995]
[1732988979433,0.11560736,96926.0,96925.0,0.10903195]
[1732988981352,0.11527265,96926.0,96925.0,0.10903195]
[1732988983069,0.11527265,96926.0,96925.0,0.15763195]
[1732988987802,0.11527265,96926.0,96925.0,0.10903195]
[1732988991429,0.11472118,96926.0,96925.0,0.10903195]
[1732989001618,0.11438362,96926.0,96925.0,0.10903195]
[1732989011525,0.11404384,96926.0,96925.0,0.10903195]
[1732989015490,0.11404384,96926.0,96925.0,0.51984652]
[1732989016720,0.11404384,96926.0,96925.0,0.10903195]
[1732989017362,0.11404384,96926.0,96925.0,0.5200827]
[1732989017720,0.11404384,96926.0,96925.0,0.10903195]
[1732989021575,0.11370639,96926.0,96925.0,0.10903195]
[1732989031642,0.11336658,96926.0,96925.0,0.10903195]
[1732989033449,0.11336658,96926.0,96925.0,0.00585995]
[1732989033946,0.26623758,96926.0,96925.0,0.00585995]
[1732989034163,0.16306658,96926.0,96925.0,0.00585995]
[1732989034382,0.26623758,96926.0,96925.0,0.00585995]
[1732989036097,0.11336658,96926.0,96925.0,0.00585995]
[1732989036743,0.15,96934.0,96931.0,0.52367252]
[1732989036950,0.35601021,96932.0,96931.0,0.52367252]
[1732989037176,0.35601021,96932.0,96931.0,0.52456943]
[1732989038828,0.36501021,96932.0,96931.0,0.52556943]
[1732989040025,0.37101021,96932.0,96931.0,0.52656943]
[1732989041721,0.37067309,96932.0,96931.0,0.52656943]
[1732989046836,0.40287575,96932.0,96931.0,0.52656943]
[1732989048128,0.40373985,96932.0,96931.0,0.52656943]
[1732989048742,0.40373985,96932.0,96931.0,0.52999671]
[1732989050117,0.37153719,96932.0,96931.0,0.80848274]
[1732989050444,0.40374198,96932.0,96931.0,0.80848274]
[1732989050675,0.40374198,96932.0,96931.0,0.52999671]
[1732989051490,0.40340515,96932.0,96931.0,0.52999671]
[1732989053423,0.40340515,96932.0,96931.0,0.80848274]
[1732989054151,0.40340515,96932.0,96931.0,0.80848676]
[1732989054363,0.37120036,96932.0,96931.0,0.52999671]
[1732989059740,0.37120036,96932.0,96931.0,0.53172491]
[1732989061439,0.37086146,96932.0,96931.0,0.53172491]
[1732989066946,0.40307109,96932.0,96931.0,0.53172491]
[1732989067160,0.37086146,96932.0,96931.0,0.53172491]
[1732989071489,0.3705239,96932.0,96931.0,0.53172491]
[1732989075757,0.26870931,96932.0,96931.0,0.53172491]
[1732989075986,0.37187431,96932.0,96931.0,0.53172491]
[1732989080048,0.36230553,96932.0,96931.0,0.53172491]
[1732989081337,0.21230553,96932.0,96931.0,0.53172491]
[1732989081553,0.21196632,96932.0,96931.0,0.53172491]
[1732989086489,0.21196632,96932.0,96931.0,0.81031324]
[1732989086721,0.21196632,96932.0,96931.0,0.530828]
[1732989086722,0.24419084,96932.0,96931.0,0.530828]
[1732989086960,0.39419084,96932.0,96931.0,0.53172491]
[1732989087415,0.39419084,96932.0,96931.0,0.530828]
[1732989091674,0.39385312,96932.0,96931.0,0.530828]
[1732989094616,0.51775312,96932.0,96931.0,0.530828]
[1732989095509,0.51175312,96932.0,96931.0,0.529828]
[1732989095720,0.51175312,96932.0,96931.0,0.528828]
[1732989095721,0.50275312,96932.0,96931.0,0.528828]
[1732989095948,0.51175312,96932.0,96931.0,0.529828]
[1732989096804,0.52075312,96932.0,96931.0,0.529828]
[1732989100128,1.41425312,96932.0,96931.0,0.529828]
[1732989100551,1.43725312,96932.0,96931.0,0.529828]
[1732989101684,1.43691542,96932.0,96931.0,0.529828]
[1732989105179,0.73691542,96932.0,96931.0,0.529828]
[1732989106683,1.43691542,96932.0,96931.0,0.529828]
[1732989108872,0.73691542,96932.0,96931.0,0.529828]
[1732989109764,0.65951542,96932.0,96931.0,0.529828]
[1732989111709,0.6591785,96932.0,96931.0,0.529828]
[1732989116858,0.4656785,96932.0,96931.0,0.529828]
[1732989120280,0.4191785,96932.0,96931.0,0.529828]
[1732989120536,0.3961785,96932.0,96931.0,0.529828]
[1732989121413,0.3871785,96932.0,96931.0,0.528828]
[1732989121600,0.3961785,96932.0,96931.0,0.528828]
[1732989121731,0.5896785,96932.0,96931.0,0.528828]
[1732989121943,0.5806785,96932.0,96931.0,0.528828]
[1732989122387,0.5716785,96932.0,96931.0,0.528828]
[1732989122615,0.5806785,96932.0,96931.0,0.528828]
[1732989122833,0.5896785,96932.0,96931.0,0.528828]
[1732989123096,0.5806785,96932.0,96931.0,0.528828]
[1732989123291,0.5896785,96932.0,96931.0,0.528828]
[1732989138317,0.3961785,96932.0,96931.0,0.528828]
[1732989141798,0.39584095,96932.0,96931.0,0.528828]
[1732989143494,0.58934095,96932.0,96931.0,0.528828]
[1732989150355,0.39584095,96932.0,96931.0,0.528828]
[1732989152036,0.41884095,96932.0,96931.0,0.528828]
[1732989155489,0.61234095,96932.0,96931.0,0.528828]
[1732989174498,0.58934095,96932.0,96931.0,0.528828]
[1732989180530,0.39584095,96932.0,96931.0,0.528828]
[1732989185784,0.58934095,96932.0,96931.0,0.528828]
[1732989190389,0.39584095,96932.0,96931.0,0.528828]
[1732989191781,0.41884095,96932.0,96931.0,0.528828]
[1732989193480,0.46394095,96932.0,96931.0,0.528828]
[1732989194173,0.41884095,96932.0,96931.0,0.528828]
[1732989195645,0.61234095,96932.0,96931.0,0.528828]
[1732989200641,0.41884095,96932.0,96931.0,0.528828]
[1732989201503,0.74114095,96932.0,96931.0,0.528828]
[1732989201704,0.54967141,96932.0,96931.0,0.528828]
[1732989202685,0.54067141,96932.0,96931.0,0.528828]
[1732989203124,1.24067141,96932.0,96931.0,0.528828]
[1732989203582,1.24967141,96932.0,96931.0,0.528828]
[1732989205379,1.24967141,96932.0,96931.0,0.52540072]
[1732989206048,1.24967141,96932.0,96931.0,0.52917183]
[1732989207150,1.96167141,96932.0,96931.0,0.52917183]
[1732989209721,1.26167141,96932.0,96931.0,0.52917183]
[1732989211064,1.26167141,96932.0,96931.0,0.42600683]
[1732989212440,1.26167141,96932.0,96931.0,0.40537383]
[1732989214661,1.96167141,96932.0,96931.0,0.40537383]
[1732989215092,1.96167141,96932.0,96931.0,0.40160272]
[1732989224294,1.26167141,96932.0,96931.0,0.40160272]
[1732989224742,1.26167141,96932.0,96931.0,0.4053838]
[1732989225437,1.30297641,96932.0,96931.0,0.4053838]
[1732989227447,2.00297641,96932.0,96931.0,0.4053838]
[1732989227916,2.00297641,96932.0,96931.0,0.40160272]
[1732989228841,1.29097641,96932.0,96931.0,0.40160272]
[1732989229316,1.29097641,96932.0,96931.0,0.40538154]
[1732989231795,0.59097641,96932.0,96931.0,0.40538154]
[1732989232473,0.60712569,96932.0,96931.0,0.40538154]
[1732989233993,1.31912569,96932.0,96931.0,0.40538154]
[1732989234595,1.31912569,96932.0,96931.0,0.38474854]
[1732989234825,2.02912569,96932.0,96931.0,0.30221654]
[1732989235226,2.02912569,96932.0,96931.0,0.27780472]
[1732989235864,2.02912569,96932.0,96931.0,0.25717172]
[1732989236107,1.31712569,96932.0,96931.0,0.25717172]
[1732989238140,2.02912569,96932.0,96931.0,0.25717172]
[1732989238370,1.31712569,96932.0,96931.0,0.25717172]
[1732989239054,1.31712569,96932.0,96931.0,0.15400672]
[1732989240194,1.51062569,96932.0,96931.0,0.11274072]
[1732989240424,1.51062569,96932.0,96931.0,0.07147472]
[1732989240681,1.31712569,96932.0,96931.0,0.03020872]
[1732989240895,1.31712569,96932.0,96931.0,7.2e-07]
[1732989241807,1.23382569,96932.0,96931.0,7.2e-07]
[1732989242012,1.18832569,96932.0,96931.0,7.2e-07]
[1732989247153,1.38182569,96932.0,96931.0,7.2e-07]
[1732989250097,0.68182569,96932.0,96931.0,7.2e-07]
[1732989253133,1.38182569,96932.0,96931.0,7.2e-07]
[1732989266119,1.38182569,96932.0,96925.0,6.5e-07]
[1732989266120,0.286171,96926.0,96925.0,6.5e-07]
[1732989266372,0.42124073,96926.0,96925.0,6.5e-07]
[1732989266582,0.42367924,96926.0,96925.0,6.5e-07]
[1732989266822,0.43446342,96926.0,96925.0,6.5e-07]
[1732989267501,1.14346342,96926.0,96925.0,6.5e-07]
[1732989267729,1.15246342,96926.0,96925.0,6.5e-07]
[1732989267946,1.14346342,96926.0,96925.0,6.5e-07]
[1732989268859,1.15246342,96926.0,96925.0,6.5e-07]
[1732989270010,1.14346342,96926.0,96925.0,6.5e-07]
[1732989270253,1.15246342,96926.0,96925.0,6.5e-07]
[1732989271549,1.44879488,96926.0,96925.0,6.5e-07]
[1732989271978,1.34596342,96926.0,96925.0,6.5e-07]
[1732989279047,1.34682762,96926.0,96925.0,6.5e-07]
[1732989281546,1.15332762,96926.0,96925.0,6.5e-07]
[1732989282203,1.14432762,96926.0,96925.0,6.5e-07]
[1732989282430,1.13532762,96926.0,96925.0,6.5e-07]
[1732989282644,1.14432762,96926.0,96925.0,6.5e-07]
[1732989282861,1.15332762,96926.0,96925.0,6.5e-07]
[1732989283772,1.13532762,96926.0,96925.0,6.5e-07]
[1732989283986,1.15332762,96926.0,96925.0,6.5e-07]
[1732989285139,1.25372057,96926.0,96925.0,6.5e-07]
[1732989285619,1.15088911,96926.0,96925.0,6.5e-07]
[1732989286595,1.15335068,96926.0,96925.0,6.5e-07]
[1732989286811,0.45335068,96926.0,96925.0,6.5e-07]
[1732989287029,0.64685068,96926.0,96925.0,6.5e-07]
[1732989289894,1.34685068,96926.0,96925.0,6.5e-07]
[1732989290562,1.15335068,96926.0,96925.0,6.5e-07]
[1732989292667,1.24106537,96926.0,96925.0,6.5e-07]
[1732989293083,1.23206537,96926.0,96925.0,6.5e-07]
[1732989293496,1.24106537,96926.0,96925.0,6.5e-07]
[1732989294737,1.23206537,96926.0,96925.0,6.5e-07]
[1732989295563,1.24106537,96926.0,96925.0,6.5e-07]
[1732989296027,1.42556537,96926.0,96925.0,6.5e-07]
[1732989296437,1.43456537,96926.0,96925.0,6.5e-07]
[1732989297761,1.34685068,96926.0,96925.0,6.5e-07]
[1732989299500,1.32885068,96926.0,96925.0,6.5e-07]
[1732989299787,1.34685068,96926.0,96925.0,6.5e-07]
[1732989300656,1.34603046,96926.0,96925.0,6.5e-07]
[1732989307834,0.00917978,96922.0,96918.0,0.99921782]
[1732989308055,0.37902321,96919.0,96918.0,0.99939669]
[1732989308288,0.41124773,96919.0,96918.0,0.99939669]
[1732989308520,0.42739788,96919.0,96918.0,0.99939669]
[1732989309032,1.12739788,96919.0,96918.0,0.99939669]
[1732989309264,1.13639788,96919.0,96918.0,0.99939669]
[1732989309948,1.13886772,96919.0,96918.0,0.99939669]
[1732989310248,0.43886772,96919.0,96918.0,0.99939669]
[1732989310492,0.44786772,96919.0,96918.0,0.99939669]
[1732989312109,0.42986772,96919.0,96918.0,0.99939669]
[1732989312308,0.43886772,96919.0,96918.0,0.99939669]
[1732989312527,0.44786772,96919.0,96918.0,0.99939669]
[1732989312750,0.42986772,96919.0,96918.0,0.99939669]
[1732989312957,0.43886772,96919.0,96918.0,0.99939669]
[1732989313190,0.44786772,96919.0,96918.0,0.99939669]
[1732989313862,0.43886772,96919.0,96918.0,0.99939669]
[1732989314286,0.42986772,96919.0,96918.0,0.99939669]
[1732989314529,0.43886772,96919.0,96918.0,0.99939669]
[1732989314737,1.12986772,96919.0,96918.0,0.99939669]
[1732989315160,1.13886772,96919.0,96918.0,0.99939669]
[1732989315794,1.14786772,96919.0,96918.0,0.99939669]
[1732989316212,1.13886772,96919.0,96918.0,0.99939669]
[1732989316435,1.14786772,96919.0,96918.0,0.99939669]
[1732989318411,1.14786772,96919.0,96918.0,1.12699669]
[1732989318815,1.14786772,96919.0,96918.0,1.13318897]
[1732989319541,1.13886772,96919.0,96918.0,1.13318897]
[1732989319760,1.14786772,96919.0,96918.0,1.13318897]
[1732989320429,1.13886772,96919.0,96918.0,1.13318897]
[1732989320841,1.14786772,96919.0,96918.0,1.13318897]
[1732989321515,0.44786772,96919.0,96918.0,1.13318897]
[1732989323339,0.44539788,96919.0,96918.0,1.13318897]
[1732989324930,0.44539788,96919.0,96918.0,1.13491757]
[1732989325148,0.44626218,96919.0,96918.0,1.13491757]